[Event "RLP-ch Rapid 2024"]
[Site "Landau"]
[Date "2024.05.04"]
[Round "1.6"]
[White "Schenderowitsch, Michael"]
[Black "Louis, Volker"]
[Result "1-0"]
[ECO "A21"]
[WhiteElo "2233"]
[BlackElo "2022"]
[Annotator "RC"]
[PlyCount "93"]
[EventDate "2024.05.03"]
[EventType "swiss"]
[EventCountry "GER"]
[SourceTitle "playchess.com"]
[Source "ChessBase"]
[SourceQuality "1"]
[TimeControl "900+5"]

1. c4 {[%emt 0:00:03]} g6 {[%emt 0:00:05]} 2. g3 {[%emt 0:00:06]} Bg7 {[%emt 0:00:01]} 3. Bg2 {[%emt 0:00:06]} e5 {[%emt 0:00:10]} 4. Nc3 {[%emt 0:00:04]} Ne7 {[%emt 0:00:05]} 5. d3 {[%emt 0:00:04]} O-O {[%emt 0:00:05]} 6. e4 {[%emt 0:00:16]} d6 {[%emt 0:01:10]} 7. Nge2 {[%emt 0:00:03]} c6 {[%emt 0:00:11]} 8. O-O {[%emt 0:00:07]} Nd7 {[%emt 0:00:01]} 9. d4 {[%emt 0:00:45]} exd4 {[%emt 0:00:48]} 10. Nxd4 {[%emt 0:00:01]} Ne5 {[%emt 0:00:36]} 11. b3 {[%emt 0:00:15]} Qb6 {[%emt 0:01:34]} 12. Nde2 {[%emt 0:00:27]} Rd8 {[%emt 0:01:07]} 13. h3 {[%emt 0:00:21]} Qc7 {[%emt 0:00:32]} 14. Be3 {[%emt 0:00:44]} Nd7 {[%emt 0:00:51]} 15. Qd2 {[%emt 0:01:05]} Nb6 {[%emt 0:00:25]} 16. Rad1 {[%emt 0:01:55]} Be6 {[%emt 0:00:07]} 17. Bg5 {[%emt 0:02:17]} Qd7 {[%emt 0:01:53]} 18. Kh2 {[%emt 0:00:05]} Qe8 {[%emt 0:00:08]} 19. Rfe1 {[%emt 0:00:28]} Rd7 {[%emt 0:00:09]} 20. Qc1 {[%emt 0:01:01]} Rc8 {[%emt 0:00:14]} 21. Qa3 {[%emt 0:01:04]} Qd8 {[%emt 0:01:01]} 22. Be3 {[%emt 0:00:15]} Ra8 {[%emt 0:00:34]} 23. Nd5 {[%emt 0:01:01]} Nec8 {[%emt 0:01:01]} 24. Ndf4 {[%emt 0:00:03]} d5 {[%emt 0:00:22]} 25. Nxe6 {[%emt 0:00:44]} fxe6 {[%emt 0:00:03]} 26. Nf4 {[%emt 0:00:16]} dxc4 {[%emt 0:01:35]} 27. Nxe6 {[%emt 0:00:12]} Qe8 {[%emt 0:00:34]} 28. Nxg7 {[%emt 0:00:10]} Rxg7 {[%emt 0:00:01]} 29. Qb2 {[%emt 0:00:38]} cxb3 {[%emt 0:00:10]} 30. axb3 {[%emt 0:00:07]} Ne7 {[%emt 0:00:20]} 31. Qc3 {[%emt 0:00:04]} Rf7 {[%emt 0:00:12]} 32. Kg1 {[%emt 0:00:08]} Qf8 {[%emt 0:00:13]} 33. Rd2 {[%emt 0:00:29]} Re8 {[%emt 0:00:01]} 34. Red1 {[%emt 0:00:04]} h6 {[%emt 0:00:09]} 35. Bc5 {[%emt 0:00:09]} Qg7 {[%emt 0:00:07]} 36. Bd4 {[%emt 0:00:05]} Qf8 {[%emt 0:00:01]} 37. Qc2 {[%emt 0:00:16]} Kh7 {[%emt 0:00:02]} 38. Ba1 {[%emt 0:00:08]} Ng8 {[%emt 0:00:03]} 39. e5 {[%emt 0:00:28]} Ne7 {[%emt 0:00:02]} 40. Be4 {[%emt 0:00:01]} Nf5 {[%emt 0:00:02]} 41. h4 {[%emt 0:00:26]} h5 {[%emt 0:00:11]} 42. Qc3 {[%emt 0:00:21]} Ne7 {[%emt 0:00:13]} 43. e6 {[%emt 0:00:08]} Ned5 {[%emt 0:00:12]} 44. Bxd5 {[%emt 0:00:21]} Nxd5 {[%emt 0:00:15]} 45. Rxd5 {[%emt 0:00:01]} Rxf2 {[%emt 0:00:28]} 46. Rd7+ {[%emt 0:00:01]} Re7 {[%emt 0:00:04]} 47. Rxe7+ {[%emt 0:00:04]} 1-0

[Event "RLP-ch Rapid 2024"]
[Site "Landau"]
[Date "2024.05.04"]
[Round "1.7"]
[White "Tresch, Lukas"]
[Black "Lang, Torsten"]
[Result "0-1"]
[ECO "B15"]
[WhiteElo "2034"]
[BlackElo "2299"]
[Annotator "TA"]
[PlyCount "146"]
[EventDate "2024.05.03"]
[EventType "swiss"]
[EventCountry "GER"]
[SourceTitle "playchess.com"]
[Source "ChessBase"]
[SourceQuality "1"]
[TimeControl "900+5"]

{[%evp 11,146,41,51,41,69,72,87,94,102,62,81,98,131,0,85,56,55,47,47,62,81,47,52,27,95,0,30,41,64,-52,-45,-101,-88,-157,87,-214,-219,-239,-194,-246,-217,-421,-386,-1462,-764,-773,-769,-677,-389,-385,-374,-611,-608,-643,-603,-727,6014,-636,-613,-639,-563,-600,-508,-6220,-5516,-2412,-1466,-1258,-1541,-1597,-1331,-1869,-1176,-1173,-589,-574,-402,-409,-397,-394,-383,-383,-339,-311,-210,-197,-72,-156,-86,-189,0,0,0,-147,1399,1366,1130,-584,-565,-579,-466,-1321,-1015,-1756,-1401,-6620,-5281,-8159,-7701,-9187,-8934,-5104,-3259,-2955,-2575,-2254,-2358,-29972,-12845,-6303,-6511,-29983,-29984,-29984,-29985,-29985,-29986,-29986,-29987,-29987,-29988,-29994,-29995,-29995,-29996,-29996,-29996]} 1. e4 {[%emt 0:00:03]} g6 {[%emt 0:00:03]} 2. d4 {[%emt 0:00:03]} c6 {[%emt 0:00:02]} 3. Nc3 {[%emt 0:00:10]} d5 {[%emt 0:00:04]} 4. Nf3 {[%emt 0:00:14]} Bg4 {[%emt 0:00:05]} 5. h3 {[%emt 0:00:31]} Bxf3 {[%emt 0:00:06]} 6. Qxf3 {[%emt 0:00:04]} e6 {[%emt 0:00:05]} 7. Be3 {[%emt 0:00:23]} Bg7 {[%emt 0:00:08]} 8. O-O-O {[%emt 0:00:15]} Nd7 {[%emt 0:00:16]} 9. g4 {[%emt 0:01:02] White is better.} Ne7 {[%emt 0:00:37]} 10. Qg3 {[%emt 0:00:50]} Qa5 {[%emt 0:01:41]} 11. Kb1 {[%emt 0:00:28]} b5 {[%emt 0:00:39]} 12. Bg2 {[%emt 0:00:56]} ({White should play} 12. exd5 $1 $16 Nxd5 13. Nxd5 cxd5 14. h4) 12... Nb6 {[%emt 0:01:53]} (12... b4 $11 13. Ne2 Qb5) 13. f4 {[%emt 0:02:24][%cal Of4f5]} (13. Ne2 {is more complex.} Nc4 14. h4 O-O-O 15. h5) 13... b4 {[%emt 0:02:43]} 14. Ne2 {[%emt 0:00:11][%cal Of4f5]} dxe4 {[%emt 0:00:39]} 15. Bxe4 {[%emt 0:00:47][%cal Of4f5]} f5 {[%emt 0:00:06]} 16. Bg2 {[%emt 0:01:37]} Ned5 {[%emt 0:00:20]} 17. Bc1 {[%emt 0:00:50]} O-O {[%emt 0:00:29]} (17... O-O-O $11 {keeps the balance.}) 18. Rhe1 {[%emt 0:00:18]} (18. h4 $1 $16) 18... Nc4 {[%emt 0:00:44]} 19. Qb3 {[%emt 0:00:26]} Nd6 {[%emt 0:00:22]} 20. g5 {[%emt 0:00:28]} (20. Ng1 $14) 20... Rfe8 $15 {[%emt 0:00:26]} 21. Ng3 {[%emt 0:00:14]} (21. Ka1 $15) 21... Qb6 $17 {[%emt 0:00:06] Black is more active.} 22. h4 {[%emt 0:00:17]} (22. Ne2 $142) 22... a5 $2 {[%emt 0:00:02]} (22... Bxd4 $17 {stays on course. White must now prevent ...Nb5.} 23. h5 a5) 23. h5 $2 {[%emt 0:00:26][%mdl 8192]} (23. c4 $1 $16 {[%cal Rc4c5] and life is bright.}) 23... a4 $19 {[%emt 0:00:18]} 24. Qd3 {[%emt 0:00:12]} Nb5 {[%emt 0:00:46]} 25. hxg6 {[%emt 0:01:22]} (25. Bxd5 $142 exd5 (25... cxd5 26. Ne2 $17) 26. Bd2) 25... hxg6 {[%emt 0:00:02]} (25... Nxd4 $2 26. gxh7+ Kxh7 27. Bxd5 $18) 26. Ka1 $2 {[%emt 0:00:11]} (26. Bxd5 cxd5 (26... exd5 $2 27. Nxf5 gxf5 28. Qxf5 $19) 27. Ne2) 26... a3 {[%emt 0:00:45]} ({Don't take} 26... Qxd4 27. Qxd4 Nxd4 (27... Bxd4 $2 28. Rd3 $19) 28. Kb1 $19) (26... Bxd4 $2 27. Bxd5 cxd5 28. Ne2 $19) 27. b3 {[%emt 0:00:16]} (27. Bxd5 axb2+ (27... exd5 $2 28. Rxe8+ Rxe8 29. Nxf5 $19) (27... cxd5 $2 28. Ne2 $19) 28. Bxb2 cxd5 (28... exd5 $2 29. Rxe8+ Rxe8 30. Ne2 $19) 29. Ne2) 27... Qxd4+ {[%emt 0:00:03]} 28. Qxd4 {[%emt 0:00:42]} Nxd4 {[%emt 0:00:23]} 29. Bxd5 {[%emt 0:00:24]} exd5 {[%emt 0:01:20]} 30. Kb1 {[%emt 0:00:07]} Kf7 {[%emt 0:00:12]} 31. Be3 $2 {[%emt 0:00:12]} (31. Rh1) 31... Nb5 {[%emt 0:00:26]} 32. Bd2 {[%emt 0:00:02]} c5 {[%emt 0:00:21]} 33. Rxe8 {[%emt 0:00:13] [#]} Rb8 {[%emt 0:01:38][%mdl 8192] [#]} 34. Rd8 $4 {[%mdl 8192]} Rxd8 {[%emt 0:00:00]} 35. Re1 {[%emt 0:00:06]} Rh8 {[%emt 0:00:00]} 36. Rh1 {[%emt 0:00:07]} Re8 {[%emt 0:00:00]} 37. Re1 {[%emt 0:00:03]} (37. Kc1 $142 Nc3 38. Bxc3 bxc3 (38... Bxc3 $2 39. Kd1 $19) 39. Kd1) 37... Bc3 {[%emt 0:00:00]} 38. Rxe8 {[%emt 0:00:08]} Kxe8 {[%emt 0:00:00][%mdl 4096] Endgame. KBN-KBN} 39. Be3 {[%emt 0:00:10]} d4 {[%emt 0:00:00]} 40. Bc1 {[%emt 0:00:06]} Kd7 {[%emt 0:00:00]} 41. Ne2 {[%emt 0:00:19]} Ke6 {[%emt 0:00:00]} 42. Ng1 {[%emt 0:00:03]} Kf7 {[%emt 0:00:32]} 43. Nf3 {[%emt 0:00:02] Dodges Be1} Kg7 {[%emt 0:00:03]} 44. Ne5 {[%emt 0:00:03]} Be1 {[%emt 0:00:08]} 45. Nd3 {[%emt 0:00:06]} Nc3+ {[%emt 0:00:03]} 46. Ka1 {[%emt 0:00:01]} Bg3 {[%emt 0:00:10] Hoping for ...Ne4.} 47. Nxc5 {[%emt 0:00:07]} Kf7 {[%emt 0:00:03] Against Ne6} 48. Nd3 {[%emt 0:00:04] Inhibits Bf2.} Nd5 {[%emt 0:00:06]} (48... Ne2 $19 {has better winning chances.} 49. Bd2 Ke6) 49. Bd2 {[%emt 0:00:05]} ({White should try} 49. Ne5+ Ke6 (49... Kg7 50. Nd3 $17) 50. Nxg6) 49... Ke6 $17 {[%emt 0:00:04]} 50. Kb1 {[%emt 0:00:05] [#]} (50. Nc5+ $17 Kd6 51. Nd3) 50... Kd6 $2 {[%emt 0:00:06]} (50... Nc3+ $1 $19 51. Ka1 Kd5 52. Nxb4+ Ke4) 51. Kc1 $1 $11 {[%emt 0:00:06][%cal Oc1d1] And now Kd1! would win.} Nc3 {[%emt 0:00:08]} 52. Bxc3 {[%emt 0:00:10]} (52. Nxb4 $11 Ne2+ 53. Kd1 Nxf4 54. Bc1) 52... bxc3 $4 {[%emt 0:00:02][%mdl 8192] KB-KN} (52... dxc3 $17 53. Kd1 Kd5 54. Nxb4+ Ke4) 53. Kd1 $18 {[%emt 0:00:07] Strongly threatening Ke2.} Kd5 {[%emt 0:00:01] [#]} 54. Ke2 $4 {[%emt 0:00:10][%mdl 8192]} (54. b4 $1 $18 {Ke2 would now be deadly.} Bh2 55. b5) 54... Ke4 $19 {[%emt 0:00:02]} 55. b4 {[%emt 0:00:05] Threatens to win with b5.} Bxf4 {[%emt 0:00:03]} 56. Nc5+ {[%emt 0:00:15]} (56. b5 $142 Bxg5 57. b6) 56... Kd5 {[%emt 0:00:03]} 57. Nd3 {[%emt 0:00:03]} Bxg5 {[%emt 0:00:02]} 58. Kf3 {[%emt 0:00:02]} Kc4 {[%emt 0:00:05]} 59. Kg3 {[%emt 0:00:03]} Be3 {[%emt 0:00:02]} 60. Kf3 {[%emt 0:00:02]} g5 {[%emt 0:00:02]} 61. Kg3 {[%emt 0:00:03]} Kd5 {[%emt 0:00:02]} 62. Kf3 {[%emt 0:00:02]} g4+ {[%emt 0:00:04]} 63. Kg3 {[%emt 0:00:01]} Bg5 {[%emt 0:00:06]} 64. Kf2 {[%emt 0:00:06]} f4 {[%emt 0:00:03]} 65. Kg2 {[%emt 0:00:02]} Ke4 {[%emt 0:00:02] ( -> ...Bh4)} 66. Kf2 {[%emt 0:00:02]} Bh4+ {[%emt 0:00:01] Black mates.} 67. Kg2 {[%emt 0:00:03]} f3+ {[%emt 0:00:01]} 68. Kf1 {[%emt 0:00:01]} g3 {[%emt 0:00:04]} 69. b5 {[%emt 0:00:04]} Bg5 {[%emt 0:00:11]} 70. b6 {[%emt 0:00:03]} Be3 {[%emt 0:00:04]} 71. Ke1 {[%emt 0:00:07]} g2 {[%emt 0:00:13][%cal Rg2g1]} 72. Nf2+ {[%emt 0:00:02]} Kd5 {[%emt 0:00:10][%cal Rg2g1]} 73. Nh3 {[%emt 0:00:05]} Ke5 {[%emt 0:00:34] What a bad dream for White.   Weighted Error Value: White=1.31/Black=0.82.  Loses game:     	White=1     	Black=1      Missed win:     	---       	Black=1      Mistake:       	White=14    	Black=4      Inaccurate:     	White=4     	Black=5      OK:         	White=9     	Black=8      Best:        	White=4     	Black=4      Strong:       	White=1     	---} 0-1

[Event "RLP-ch Rapid 2024"]
[Site "Landau"]
[Date "2024.05.04"]
[Round "1.8"]
[White "Boder, Jan"]
[Black "Diesenhof, Michael"]
[Result "1-0"]
[ECO "A21"]
[WhiteElo "2318"]
[BlackElo "2016"]
[Annotator "TA"]
[PlyCount "77"]
[EventDate "2024.05.03"]
[EventType "swiss"]
[EventCountry "GER"]
[SourceTitle "playchess.com"]
[Source "ChessBase"]
[SourceQuality "1"]
[TimeControl "900+5"]

{[%evp 9,77,6,-4,0,6,3,32,-37,-32,-38,-29,-39,-15,-46,-32,-28,-19,-57,-5,0,2,14,46,-47,42,12,45,44,67,4,12,0,-7,-1,19,-20,79,68,72,71,114,18,26,6,60,54,127,123,127,122,118,125,114,122,132,125,141,156,256,256,305,236,515,508,519,514,1743,1598,5306,5188]} 1. c4 {[%emt 0:00:01]} e5 {[%emt 0:00:08]} 2. g3 {[%emt 0:00:02]} d6 {[%emt 0:00:27]} 3. Bg2 {[%emt 0:00:01]} g6 {[%emt 0:00:02]} 4. b4 {[%emt 0:00:02]} Bg7 {[%emt 0:00:02]} 5. Nc3 {[%emt 0:00:01]} Nf6 {[%emt 0:00:17]} 6. Rb1 {[%emt 0:00:10]} O-O {[%emt 0:00:11]} 7. d3 {[%emt 0:00:16]} a5 {[%emt 0:00:34]} 8. bxa5 {[%emt 0:02:57]} (8. b5 $14) 8... Nc6 {[%emt 0:00:18]} 9. Nf3 {[%emt 0:00:10]} Rxa5 {[%emt 0:00:47]} 10. O-O {[%emt 0:00:03]} h6 {[%emt 0:01:11]} 11. Bd2 {[%emt 0:01:02]} Kh7 {[%emt 0:00:20]} 12. a4 {[%emt 0:00:04]} Ra6 {[%emt 0:01:55]} 13. Qc2 {[%emt 0:01:56]} Na5 {[%emt 0:00:37]} ({Black should try} 13... Nd7 $15) 14. c5 $11 {[%emt 0:00:17]} dxc5 {[%emt 0:02:26]} 15. Nxe5 {[%emt 0:00:25]} Qe7 {[%emt 0:00:28]} 16. Nf3 {[%emt 0:00:28]} (16. f4 $1 $14) 16... c4 {[%emt 0:00:59]} (16... Rd8 $15) 17. Nb5 {[%emt 0:01:15]} cxd3 {[%emt 0:02:59]} 18. exd3 {[%emt 0:00:02]} Nd5 {[%emt 0:00:12] Prevents Bb4} 19. Rfe1 {[%emt 0:00:27]} (19. Nh4 $14 Be6 20. Bxd5 Bxd5 21. Nxc7) 19... Qd8 {[%emt 0:00:14]} 20. Nbd4 {[%emt 0:01:55]} Nc6 {[%emt 0:00:44]} 21. Ne2 {[%emt 0:02:44]} Qd6 {[%emt 0:00:16]} 22. Rb5 {[%emt 0:00:46][%cal Ob5d5]} (22. Nf4 {simplifies} Nxf4 23. Bxf4 Qa3 24. Bxc7 Qxa4 25. Qxa4 Rxa4 26. Ne5) 22... Nb6 {[%emt 0:00:40]} (22... Ndb4 $11 23. Qb1 Nxd3 (23... Rxa4 24. Qb3 $16)) 23. a5 $36 {[%emt 0:00:10][%mdl 2048] White is pushing.} Nd7 {[%emt 0:00:19] [#]} 24. d4 $1 {[%emt 0:00:20]} Nf6 {[%emt 0:00:05]} (24... Re8 25. Qc4) 25. Bf4 {[%emt 0:00:06] White is more active.} (25. Ne5 $16) 25... Qd8 {[%emt 0:00:10][%cal Of8e8]} 26. d5 {[%emt 0:00:16]} Bf5 {[%emt 0:00:22]} (26... Nxa5 $6 27. Bxc7 Bf5 28. Qc1 $14 (28. Bxd8 Bxc2 29. Bxa5 Bd3 $16)) (26... Rxa5 $2 27. Rxa5 Nxa5 28. Bxc7 Qxd5 29. Nfd4 $18) (26... Nxd5 $11 27. Rxd5 Qxd5 28. Ng5+ (28. Bxc7 $2 Bf5 $19) 28... Qxg5 29. Bxg5 hxg5) 27. Qc1 $14 {[%emt 0:00:13]} Nxd5 {[%emt 0:00:05] [#]} (27... Nxa5 28. Bxc7 Qa8 29. Nf4 $16) (27... Rxa5 $6 28. Rxb7 Ne7 (28... Qxd5 $2 29. Ng5+ hxg5 30. Bxd5 $18) 29. Bxc7 $18) (27... Bd3 $14) 28. Rxd5 $1 $16 {[%emt 0:00:05][%mdl 512]} Qxd5 {[%emt 0:00:03] [#]} 29. Ng5+ $1 {[%emt 0:00:01][%mdl 512]} hxg5 {[%emt 0:00:05]} 30. Bxd5 {[%emt 0:00:01]} gxf4 {[%emt 0:00:02]} 31. Nxf4 {[%emt 0:00:07]} Rxa5 {[%emt 0:00:15]} 32. Bxc6 {[%emt 0:00:14]} bxc6 {[%emt 0:00:02]} 33. Qxc6 {[%emt 0:00:01]} Ra7 {[%emt 0:00:24]} (33... Re5 $16 {might work better.} 34. Rxe5 Bxe5) 34. h4 $18 {[%emt 0:00:04][%cal Bh2h4,Bh4h5][%mdl 32]} Rd8 {[%emt 0:00:04]} 35. Qc4 {[%emt 0:00:24][%cal Oe1e7] Threatens to win with Re7!} Kg8 $2 {[%emt 0:00:08]} (35... c5 {was necessary.} 36. Qxc5 Rdd7) 36. h5 {[%emt 0:00:01] White is clearly winning.} g5 {[%emt 0:00:03]} 37. Nd5 {[%emt 0:00:04] Hoping for Ne7+.} Ra1 {[%emt 0:00:08]} (37... Be6 $142 38. Ne7+ Kh8 39. Rxe6 fxe6 40. Qxe6 c6) 38. Rxa1 {[%emt 0:00:07] Intending Ne7+ and mate.} Bxa1 {[%emt 0:00:04]} 39. Ne7+ {[%emt 0:00:01] Weighted Error Value: White=0.25 (precise) /Black=0.41.  Mistake:       	White=4     	Black=8      Inaccurate:     	White=4     	Black=5      OK:         	White=12    	Black=6      Best:        	White=2     	Black=3      Brilliant:      	White=2     	---} 1-0

[Event "RLP-ch Rapid 2024"]
[Site "Landau"]
[Date "2024.05.04"]
[Round "1.9"]
[White "Anissimova, Mariya"]
[Black "Morio, Estelle"]
[Result "1-0"]
[ECO "C84"]
[WhiteElo "1850"]
[BlackElo "1814"]
[Annotator "NA RC"]
[PlyCount "55"]
[EventDate "2024.05.03"]
[EventType "swiss"]
[EventCountry "GER"]
[SourceTitle "playchess.com"]
[Source "ChessBase"]
[SourceQuality "1"]
[TimeControl "900+5"]

1. e4 {[%emt 0:00:02]} e5 {[%emt 0:00:01]} 2. Nf3 {[%emt 0:00:02]} Nc6 {[%emt 0:15:14]} 3. Bb5 {[%emt 0:00:02]} a6 {[%emt 0:00:00]} 4. Ba4 {[%emt 0:00:01]} Nf6 {[%emt 0:00:10]} 5. d4 {[%emt 0:00:57]} exd4 {[%emt 0:00:00]} 6. O-O {[%emt 0:14:31]} Be7 {[%emt 0:00:00]} 7. e5 {[%emt 0:00:00]} Nd5 {[%emt 0:00:00]} 8. Bb3 {[%emt 0:00:00]} Nb6 {[%emt 0:00:00]} 9. Re1 {[%emt 0:00:00]} O-O {[%emt 0:00:00]} 10. Nxd4 {[%emt 0:00:00]} Nxd4 {[%emt 0:00:00]} 11. Qxd4 {[%emt 0:00:00]} d5 {[%emt 0:00:00]} 12. c3 {[%emt 0:00:00]} Bf5 {[%emt 0:00:00]} 13. Bf4 {[%emt 0:00:00]} c6 {[%emt 0:00:00]} 14. Nd2 {[%emt 0:00:00]} Nd7 {[%emt 0:00:00]} 15. Qe3 {[%emt 0:00:00]} Nc5 {[%emt 0:00:00]} 16. Qg3 {[%emt 0:00:00]} Ne6 {[%emt 0:01:00]} 17. Nf3 {[%emt 0:00:00]} Nxf4 {[%emt 0:00:00]} 18. Qxf4 {[%emt 0:00:00]} Bg6 {[%emt 0:00:00]} 19. Rad1 {[%emt 0:00:00]} h6 {[%emt 0:00:00]} 20. c4 {[%emt 0:00:00]} Qc7 {[%emt 0:00:00]} 21. cxd5 {[%emt 0:00:00]} cxd5 {[%emt 0:00:00]} 22. Bxd5 {[%emt 0:00:00]} Rad8 {[%emt 0:00:07]} 23. Bb3 {[%emt 0:00:00]} Qb6 {[%emt 0:00:15]} 24. h3 {[%emt 0:00:00]} Rxd1 {[%emt 0:00:09]} 25. Rxd1 {[%emt 0:00:00]} Rd8 {[%emt 0:00:01]} 26. Rxd8+ {[%emt 0:00:00]} Qxd8 {[%emt 0:00:01]} 27. Qg3 {[%emt 0:00:00]} Bb4 {[%emt 0:00:11]} 28. Qxg6 {[%emt 0:00:00]} 1-0

[Event "RLP-ch Rapid 2024"]
[Site "Landau"]
[Date "2024.05.04"]
[Round "1.10"]
[White "Orschiedt-Eghbali, Anke"]
[Black "Mader, Lena"]
[Result "0-1"]
[ECO "A02"]
[WhiteElo "1761"]
[BlackElo "1902"]
[Annotator "NA RC"]
[PlyCount "50"]
[EventDate "2024.05.03"]
[EventType "swiss"]
[EventCountry "GER"]
[SourceTitle "playchess.com"]
[Source "ChessBase"]
[SourceQuality "1"]
[TimeControl "900+5"]

1. f4 {[%emt 0:00:01]} Nf6 {[%emt 0:00:02]} 2. Nf3 {[%emt 0:00:01]} g6 {[%emt 0:00:01]} 3. g3 {[%emt 0:00:01]} Bg7 {[%emt 0:00:00]} 4. Bg2 {[%emt 0:00:01]} c5 {[%emt 0:00:02]} 5. O-O {[%emt 0:00:01]} O-O {[%emt 0:00:00]} 6. d3 {[%emt 0:00:04]} Nc6 {[%emt 0:00:04]} 7. Na3 {[%emt 0:00:29]} d6 {[%emt 0:00:06]} 8. e4 {[%emt 0:00:24]} Bg4 {[%emt 0:00:21]} 9. c3 {[%emt 0:00:31]} Rc8 {[%emt 0:00:16]} 10. Nc2 {[%emt 0:00:01]} b5 {[%emt 0:00:24]} 11. a3 {[%emt 0:00:10]} a5 {[%emt 0:00:21]} 12. Be3 {[%emt 0:00:06]} Qc7 {[%emt 0:02:28]} 13. Qd2 {[%emt 0:00:13]} Qb8 {[%emt 0:00:21]} 14. h3 {[%emt 0:00:26]} Bd7 {[%emt 0:00:32]} 15. d4 {[%emt 0:01:19]} Nxe4 {[%emt 0:00:19]} 16. Qe1 {[%emt 0:00:15]} cxd4 {[%emt 0:01:04]} 17. Ncxd4 {[%emt 0:00:11]} Nc5 {[%emt 0:00:55]} 18. Nxc6 {[%emt 0:00:43]} Bxc6 {[%emt 0:00:02]} 19. Bxc5 {[%emt 0:00:02]} dxc5 {[%emt 0:00:04]} 20. Qxe7 {[%emt 0:00:27]} Rfe8 {[%emt 0:00:29]} 21. Qg5 {[%emt 0:01:46]} h6 {[%emt 0:02:18]} 22. Qg4 {[%emt 0:00:33]} Qb6 {[%emt 0:01:42]} 23. Kh2 {[%emt 0:01:53]} h5 {[%emt 0:00:57]} 24. Qh4 {[%emt 0:01:09]} Bxf3 {[%emt 0:00:12]} 25. Rxf3 {[%emt 0:00:21]} Bf6 {[%emt 0:00:02]} 0-1